fUST/lending_fUST_20260513
["ID","MTS","AMOUNT","RATE_DAILY","PERIOD"]
[422154121,1778626247000,-500.0,0.00010958,2]
[422154125,1778626247000,-500.0,0.00010958,2]
[422154123,1778626247000,-500.0,0.00010958,2]
[422154115,1778626247000,-449.12067983,0.00010958,2]
[422154082,1778626247000,-500.0,0.00010958,2]
[422154077,1778626247000,-500.0,0.00010958,2]
[422154075,1778626247000,-500.0,0.00010958,2]
[422154080,1778626247000,-500.0,0.00010958,2]
[422154079,1778626247000,-575.68,0.00010958,2]
[422154073,1778626247000,-500.0,0.00010958,2]
[422154071,1778626247000,-44.04708127,0.00010958,2]
[422154129,1778626247000,-567.55,0.00010958,2]
[422154084,1778626247000,-700.75932017,0.00010958,2]
[422154117,1778626247000,-500.0,0.00010958,2]
[422154134,1778626247000,-1525.09,0.00010958,2]
[422154169,1778626247000,-500.0,0.00010958,2]
[422154150,1778626247000,-404.18122843,0.00010958,2]
[422154182,1778626247000,-901.12660424,0.00010958,2]
[422154180,1778626247000,-842.35,0.00010958,2]
[422154165,1778626247000,-500.0,0.00010958,2]
[422154176,1778626247000,-3200.7991,0.00010958,2]
[422154164,1778626247000,-632.56,0.00010958,2]
[422154161,1778626247000,-500.0,0.00010958,2]
[422154137,1778626247000,-500.0,0.00010958,2]
[422154156,1778626247000,-517.18,0.00010958,2]
[422154158,1778626247000,-799.36,0.00010958,2]
[422154173,1778626247000,-500.0,0.00010958,2]
[422154171,1778626247000,-325.94873256,0.00010958,2]
[422154174,1778626247000,-500.0,0.00010958,2]
[422154167,1778626247000,-500.0,0.00010958,2]
[422154154,1778626247000,-461.94769972,0.00010958,2]
[422154147,1778626247000,-95.81877157,0.00010958,2]
[422154145,1778626247000,-500.0,0.00010958,2]
[422154152,1778626247000,-500.0,0.00010958,2]
[422154160,1778626247000,-500.0,0.00010958,2]
[422154178,1778626247000,-500.0,0.00010958,2]
[422154559,1778626393000,3000.0,0.00014,30]
[422154584,1778626966000,152.0,0.00014,30]
[422154585,1778626967000,152.0,0.00014,30]
[422154586,1778626967000,152.0,0.00014,30]
[422154587,1778626968000,152.0,0.00014,30]
[422154589,1778626991000,152.0,0.00014,30]
[422154590,1778626992000,152.0,0.00014,30]
[422154599,1778627411000,152.0,0.00014,30]
[422154812,1778627440000,-4478.43246322,8.818e-05,2]
[422154811,1778627440000,-521.56753678,8.818e-05,2]
[422154813,1778627440000,-250.0,8.909e-05,2]
[422154815,1778627440000,-1367.6394302,9.123e-05,2]
[422154821,1778627440000,-2404.81356325,0.00010096,2]
[422154816,1778627440000,-303.8646819,9.4e-05,2]
[422154817,1778627440000,-300.0,0.00010095,2]
[422154819,1778627440000,-16015.54180994,0.00010096,2]
[422154820,1778627440000,-1101.91295579,0.00010096,2]
[422154818,1778627440000,-11288.07367979,0.00010096,2]
[422154814,1778627440000,-361.7022128,9.108e-05,2]
[422154845,1778627443000,-3803.0474745,0.00010096,2]
[422154850,1778627443000,-1357.39668019,0.00010096,2]
[422154849,1778627443000,-3339.73672122,0.00010096,2]
[422154848,1778627443000,-1544.221246,0.00010096,2]
[422154846,1778627443000,-4360.17632583,0.00010096,2]
[422154847,1778627443000,-3648.23473783,0.00010096,2]
[422154878,1778627446000,-2028.65,0.00010096,2]
[422154879,1778627446000,-3264.70243027,0.00010096,2]
[422154881,1778627587000,151.0,0.00014,30]
[422154882,1778627597000,152.0,0.00014,30]
[422154883,1778627597000,152.0,0.00014,30]
[422154884,1778627627000,151.0,0.00014,30]
[422154885,1778627644000,8008.88924837,0.00014,30]
[422154886,1778627667000,151.0,0.00014,30]
[422154887,1778627677000,152.0,0.00014,30]
[422154888,1778627706000,151.0,0.00014,30]
[422154889,1778627747000,151.0,0.00014,30]
[422154891,1778627779000,152.0,0.00014,30]
[422154892,1778627787000,151.0,0.00014,30]
[422154895,1778627817000,151.0,0.00014,30]
[422154897,1778627867000,151.0,0.00014,30]
[422154921,1778628399000,152.0,0.00014,30]
[422154958,1778628631000,-5000.0,8.771e-05,2]
[422154970,1778628631000,-300.0,8.994e-05,2]
[422154972,1778628631000,-370.97129807,8.995e-05,2]
[422154960,1778628631000,-5000.0,8.86e-05,2]
[422154968,1778628631000,-300.0,8.993e-05,2]
[422154962,1778628631000,-1200.0,8.949e-05,2]
[422154967,1778628631000,-300.0,8.993e-05,2]
[422154965,1778628631000,-300.0,8.993e-05,2]
[422155040,1778628632000,-152.0,0.00010452,2]
[422155009,1778628632000,-300.0,0.00010296,2]
[422155011,1778628632000,-300.0,0.00010296,2]
[422155014,1778628632000,-300.0,0.00010296,2]
[422155018,1778628632000,-300.0,0.00010296,2]
[422155016,1778628632000,-300.0,0.00010296,2]
[422155020,1778628632000,-218.60019282,0.00010299,2]
[422155024,1778628632000,-161.62975969,0.0001033,2]
[422155007,1778628632000,-300.0,0.00010296,2]
[422155028,1778628632000,-160.0,0.0001033,2]
[422155026,1778628632000,-160.0,0.0001033,2]
[422155032,1778628632000,-162.380719,0.00010409,2]
[422155034,1778628632000,-151.0,0.00010409,2]
[422155038,1778628632000,-152.0,0.00010452,2]
[422155030,1778628632000,-10312.75672155,0.000104,2]
[422155022,1778628632000,-10312.75672155,0.000103,2]
[422155006,1778628632000,-300.0,0.00010296,2]
[422154997,1778628632000,-300.0,0.00010296,2]
[422155042,1778628632000,-557.5788265,0.00010464,2]
[422154980,1778628632000,-31772.5249941,0.00010168,2]
[422154978,1778628632000,-29038.7636336,0.00010168,2]
[422154974,1778628632000,-420.0,9.892e-05,2]
[422154981,1778628632000,-5619.5121001,0.00010168,2]
[422154976,1778628632000,-264.81237341,0.00010162,2]
[422154983,1778628632000,-152.0,0.00010187,2]
[422154990,1778628632000,-300.0,0.00010296,2]
[422154985,1778628632000,-152.0,0.00010208,2]
[422155001,1778628632000,-300.0,0.00010296,2]
[422154987,1778628632000,-152.0,0.00010208,2]
[422154995,1778628632000,-300.0,0.00010296,2]
[422155000,1778628632000,-300.0,0.00010296,2]
[422154991,1778628632000,-300.0,0.00010296,2]
[422154994,1778628632000,-300.0,0.00010296,2]
[422155004,1778628632000,-300.0,0.00010296,2]
[422155046,1778628632000,-152.0,0.00010467,2]
[422155044,1778628632000,-152.0,0.00010467,2]
[422155048,1778628632000,-152.0,0.00010467,2]
[422155086,1778628632000,-500.0,0.00010499,2]
[422155087,1778628632000,-500.0,0.00010499,2]
[422155097,1778628632000,-152.0,0.00010507,2]
[422155100,1778628632000,-10312.75672155,0.000106,2]
[422155102,1778628632000,-10312.75672155,0.000107,2]
[422155103,1778628632000,-152.0,0.00010702,2]
[422155090,1778628632000,-500.0,0.00010499,2]
[422155095,1778628632000,-152.0,0.00010507,2]
[422155093,1778628632000,-500.0,0.000105,2]
[422155106,1778628632000,-122.99752273,0.00010724,2]
[422155092,1778628632000,-10312.75672155,0.000105,2]
[422155109,1778628632000,-29.00247727,0.00010724,2]
[422155111,1778628632000,-152.0,0.00010724,2]
[422155113,1778628632000,-152.0,0.00010745,2]
[422155115,1778628632000,-152.0,0.00010745,2]
[422155084,1778628632000,-500.0,0.00010499,2]
[422155066,1778628632000,-500.0,0.00010499,2]
[422155036,1778628632000,-537.6845,0.00010409,2]
[422155068,1778628632000,-261.14929195,0.00010499,2]
[422155082,1778628632000,-500.0,0.00010499,2]
[422155052,1778628632000,-152.0,0.00010481,2]
[422155054,1778628632000,-152.0,0.00010481,2]
[422155117,1778628632000,-180.04752273,0.00010774,2]
[422155050,1778628632000,-152.0,0.00010467,2]
[422155056,1778628632000,-500.0,0.00010499,2]
[422155060,1778628632000,-500.0,0.00010499,2]
[422155058,1778628632000,-500.0,0.00010499,2]
[422155072,1778628632000,-500.0,0.00010499,2]
[422155080,1778628632000,-500.0,0.00010499,2]
[422155078,1778628632000,-500.0,0.00010499,2]
[422155074,1778628632000,-500.0,0.00010499,2]
[422155064,1778628632000,-500.0,0.00010499,2]
[422155076,1778628632000,-500.0,0.00010499,2]
[422155070,1778628632000,-500.0,0.00010499,2]
[422155062,1778628632000,-500.0,0.00010499,2]
[422155201,1778628638000,-152.0,0.00010826,2]
[422155200,1778628638000,-483.51,0.00010818,2]
[422155199,1778628638000,-319.95247727,0.00010774,2]
[422155203,1778628638000,-152.0,0.00010848,2]
[422155202,1778628638000,-152.0,0.00010848,2]
[422155207,1778628638000,-152.0,0.00010893,2]
[422155208,1778628638000,-278.53752273,0.000109,2]
[422155204,1778628638000,-152.0,0.00010872,2]
[422155206,1778628638000,-152.0,0.00010893,2]
[422155205,1778628638000,-349.0,0.00010882,2]
[422155209,1778628638000,-756.81431939,0.000109,2]
[422155216,1778628640000,-1219.91665635,0.000109,2]
[422155215,1778628640000,-474.91468938,0.000109,2]
[422155214,1778628640000,-295.73937491,0.000109,2]
[422155218,1778628644000,152.0,0.00014,30]
[422155221,1778628646000,-152.0,0.00010776,2]
[422155225,1778628646000,-7286.83415879,0.000109,2]
[422155224,1778628646000,-152.0,0.00010797,2]
[422155222,1778628646000,-152.0,0.00010776,2]
[422155226,1778628646000,-443.0,0.00010923,2]
[422155228,1778628646000,-185.0,0.00010923,2]
[422155227,1778628646000,-742.0,0.00010923,2]
[422155229,1778628646000,-155.0,0.00010957,2]
[422155236,1778628646000,-506.87478769,0.00010958,2]
[422155234,1778628646000,-341.84148582,0.00010958,2]
[422155231,1778628646000,-1667.079,0.00010958,2]
[422155239,1778628646000,-500.0,0.00010958,2]
[422155235,1778628646000,-350.21851418,0.00010958,2]
[422155230,1778628646000,-290.75084652,0.00010957,2]
[422155223,1778628646000,-152.0,0.00010797,2]
[422155241,1778628646000,-2333.9186,0.00010958,2]
[422155237,1778628646000,-524.85,0.00010958,2]
[422155238,1778628646000,-500.0,0.00010958,2]
[422155240,1778628646000,-500.0,0.00010958,2]
[422155243,1778628646000,-500.0,0.00010958,2]
[422155242,1778628646000,-500.0,0.00010958,2]
[422155245,1778628646000,-350.42396904,0.00010958,2]
[422155244,1778628646000,-504.00325443,0.00010958,2]
[422155232,1778628646000,-500.0,0.00010958,2]
[422155233,1778628646000,-500.0,0.00010958,2]
[422155247,1778628647000,-295.43396904,0.00010958,2]
[422155246,1778628647000,-546.56603096,0.00010958,2]
[422155264,1778628649000,-500.0,0.00010958,2]
[422155258,1778628649000,-204.56603096,0.00010958,2]
[422155257,1778628649000,-474.91468938,0.00010848,2]
[422155263,1778628649000,-500.0,0.00010958,2]
[422155259,1778628649000,-1486.25,0.00010958,2]
[422155266,1778628649000,-500.0,0.00010958,2]
[422155271,1778628649000,-195.48706283,0.00010958,2]
[422155262,1778628649000,-913.91,0.00010958,2]
[422155265,1778628649000,-500.0,0.00010958,2]
[422155267,1778628649000,-500.0,0.00010958,2]
[422155268,1778628649000,-500.0,0.00010958,2]
[422155269,1778628649000,-639.15706283,0.00010958,2]
[422155270,1778628649000,-108.51293717,0.00010958,2]
[422155260,1778628649000,-500.0,0.00010958,2]
[422155261,1778628649000,-501.7531446,0.00010958,2]
[422155274,1778628665000,152.0,0.00014,30]
[422155277,1778628963000,152.0,0.00014,30]
[422155281,1778629027000,159.608313,4.692e-05,2]
[422155291,1778629352000,152.0,0.00014,30]
[422155292,1778629673000,152.0,0.00014,30]
[422155363,1778629832000,-5156.37836078,0.000105,2]
[422155362,1778629832000,-5156.37836078,0.000104,2]
[422155359,1778629832000,-160.0,0.00010326,2]
[422155361,1778629832000,-161.62975969,0.00010326,2]
[422155364,1778629832000,-5156.37836078,0.000106,2]
[422155366,1778629832000,-152.0,0.00010779,2]
[422155365,1778629832000,-5156.37836078,0.000107,2]
[422155370,1778629832000,-152.0,0.00010797,2]
[422155368,1778629832000,-152.0,0.00010779,2]
[422155369,1778629832000,-152.0,0.00010797,2]
[422155367,1778629832000,-152.0,0.00010779,2]
[422155371,1778629832000,-249.999999,0.000108,2]
[422155379,1778629832000,-5156.37836078,0.000109,2]
[422155381,1778629832000,-716.52,0.00010958,2]
[422155375,1778629832000,-185.0,0.00010841,2]
[422155378,1778629832000,-152.0,0.00010844,2]
[422155377,1778629832000,-152.0,0.00010844,2]
[422155376,1778629832000,-443.0,0.00010841,2]
[422155373,1778629832000,-574.654,0.00010841,2]
[422155380,1778629832000,-3381.5331741,0.00010929,2]
[422155388,1778629832000,-500.0,0.00010958,2]
[422155360,1778629832000,-160.0,0.00010326,2]
[422155383,1778629832000,-500.0,0.00010958,2]
[422155382,1778629832000,-500.0,0.00010958,2]
[422155387,1778629832000,-575.68,0.00010958,2]
[422155372,1778629832000,-386.808,0.00010821,2]
[422155357,1778629832000,-600.0,0.00010268,2]
[422155347,1778629832000,-300.0,0.00010268,2]
[422155356,1778629832000,-300.0,0.00010268,2]
[422155327,1778629832000,-5000.0,5.36e-05,2]
[422155329,1778629832000,-389.86847974,5.469e-05,2]
[422155331,1778629832000,-159.608313,5.594e-05,2]
[422155339,1778629832000,-530.22113244,9.469e-05,2]
[422155336,1778629832000,-460.04480609,7.469e-05,2]
[422155334,1778629832000,-250.0,6.752e-05,2]
[422155332,1778629832000,-159.608313,6.496e-05,2]
[422155338,1778629832000,-159.608313,9.201e-05,2]
[422155337,1778629832000,-159.608313,8.299e-05,2]
[422155343,1778629832000,-300.0,0.00010268,2]
[422155335,1778629832000,-159.608313,7.398e-05,2]
[422155342,1778629832000,-300.0,0.00010268,2]
[422155340,1778629832000,-149557.72062268,9.867e-05,2]
[422155341,1778629832000,-218.60019282,9.966e-05,2]
[422155345,1778629832000,-300.0,0.00010268,2]
[422155344,1778629832000,-300.0,0.00010268,2]
[422155346,1778629832000,-300.0,0.00010268,2]
[422155348,1778629832000,-300.0,0.00010268,2]
[422155349,1778629832000,-300.0,0.00010268,2]
[422155352,1778629832000,-300.0,0.00010268,2]
[422155351,1778629832000,-300.0,0.00010268,2]
[422155350,1778629832000,-300.0,0.00010268,2]
[422155353,1778629832000,-300.0,0.00010268,2]
[422155354,1778629832000,-300.0,0.00010268,2]
[422155355,1778629832000,-300.0,0.00010268,2]
[422155358,1778629832000,-5156.37836078,0.000103,2]
[422155386,1778629832000,-500.0,0.00010958,2]
[422155374,1778629832000,-645.0,0.00010841,2]
[422155385,1778629832000,-1264.63,0.00010958,2]
[422155420,1778629832000,-1399.9,0.00010958,2]
[422155414,1778629832000,-807.25,0.00010958,2]
[422155418,1778629832000,-500.0,0.00010958,2]
[422155421,1778629832000,-500.0,0.00010958,2]
[422155422,1778629832000,-305.73672402,0.00010958,2]
[422155424,1778629832000,-1064.48,0.00010958,2]
[422155434,1778629832000,-683.25,0.00010958,2]
[422155428,1778629832000,-572.72,0.00010958,2]
[422155425,1778629832000,-500.0,0.00010958,2]
[422155427,1778629832000,-2943.46,0.00010958,2]
[422155431,1778629832000,-500.0,0.00010958,2]
[422155429,1778629832000,-500.0,0.00010958,2]
[422155426,1778629832000,-845.22,0.00010958,2]
[422155430,1778629832000,-500.0,0.00010958,2]
[422155433,1778629832000,-500.0,0.00010958,2]
[422155432,1778629832000,-500.0,0.00010958,2]
[422155435,1778629832000,-500.0,0.00010958,2]
[422155441,1778629832000,-767.83,0.00010958,2]
[422155437,1778629832000,-500.0,0.00010958,2]
[422155438,1778629832000,-512.17,0.00010958,2]
[422155439,1778629832000,-859.97,0.00010958,2]
[422155442,1778629832000,-500.0,0.00010958,2]
[422155436,1778629832000,-1278.65,0.00010958,2]
[422155443,1778629832000,-500.0,0.00010958,2]
[422155440,1778629832000,-1050.1,0.00010958,2]
[422155411,1778629832000,-500.0,0.00010958,2]
[422155416,1778629832000,-500.0,0.00010958,2]
[422155423,1778629832000,-703.29,0.00010958,2]
[422155415,1778629832000,-500.0,0.00010958,2]
[422155389,1778629832000,-500.0,0.00010958,2]
[422155390,1778629832000,-1131.17,0.00010958,2]
[422155393,1778629832000,-2347.1823,0.00010958,2]
[422155391,1778629832000,-500.0,0.00010958,2]
[422155392,1778629832000,-500.0,0.00010958,2]
[422155417,1778629832000,-541.27,0.00010958,2]
[422155396,1778629832000,-500.0,0.00010958,2]
[422155395,1778629832000,-500.0,0.00010958,2]
[422155397,1778629832000,-500.0,0.00010958,2]
[422155398,1778629832000,-543.91,0.00010958,2]
[422155399,1778629832000,-1319.24,0.00010958,2]
[422155403,1778629832000,-1461.55,0.00010958,2]
[422155400,1778629832000,-500.0,0.00010958,2]
[422155394,1778629832000,-500.0,0.00010958,2]
[422155402,1778629832000,-500.0,0.00010958,2]
[422155401,1778629832000,-500.0,0.00010958,2]
[422155412,1778629832000,-500.0,0.00010958,2]
[422155413,1778629832000,-2655.13,0.00010958,2]
[422155419,1778629832000,-500.0,0.00010958,2]
[422155410,1778629832000,-500.0,0.00010958,2]
[422155408,1778629832000,-500.0,0.00010958,2]
[422155384,1778629832000,-500.0,0.00010958,2]
[422155409,1778629832000,-500.0,0.00010958,2]
[422155407,1778629832000,-606.21,0.00010958,2]
[422155404,1778629832000,-500.0,0.00010958,2]
[422155406,1778629832000,-766.05,0.00010958,2]
[422155405,1778629832000,-500.0,0.00010958,2]
[422155447,1778629833000,-500.0,0.00010958,2]
[422155444,1778629833000,-2817.23,0.00010958,2]
[422155445,1778629833000,-1683.87,0.00010958,2]
[422155446,1778629833000,-500.0,0.00010958,2]
[422155448,1778629833000,-543.42,0.00010958,2]
[422155452,1778629833000,-808.1,0.00010958,2]
[422155450,1778629833000,-957.51,0.00010958,2]
[422155454,1778629833000,-500.0,0.00010958,2]
[422155455,1778629833000,-479.76381328,0.00010958,2]
[422155451,1778629833000,-2904.07,0.00010958,2]
[422155449,1778629833000,-500.0,0.00010958,2]
[422155453,1778629833000,-622.5,0.00010958,2]
[422155462,1778629838000,-2813.55,0.00010958,2]
[422155463,1778629838000,-182.3460503,0.00010958,2]
[422155461,1778629838000,-500.0,0.00010958,2]
[422155472,1778629841000,-954.38514969,0.00010958,2]
[422155471,1778629841000,-152.0,0.00010737,2]
[422155487,1778629997000,151.0,0.00014,30]
[422155488,1778629999000,3000.0,0.00014,30]
[422155489,1778630062000,10000.0,0.00014,30]
[422155490,1778630490000,200.0,0.00013844,120]
[422155800,1778631040000,-2432.31096794,7.784e-05,2]
[422155799,1778631040000,-2563.64248675,7.684e-05,2]
[422155797,1778631040000,-300.0,7.683e-05,2]
[422155795,1778631040000,-2710.75559043,7.6e-05,2]
[422155792,1778631040000,-1296.1428224,7.584e-05,2]
[422155793,1778631040000,-173.0031,7.599e-05,2]
[422155790,1778631040000,-378.00440528,7.554e-05,2]
[422155788,1778631040000,-5000.0,7.524e-05,2]
[422155818,1778631043000,-390.78040377,7.784e-05,2]
[422155835,1778631046000,-3453.73235187,8.084e-05,2]
[422155833,1778631046000,-18.16823743,7.784e-05,2]
[422155836,1778631046000,-3657.98926427,8.184e-05,2]
[422155837,1778631046000,-3831.14215109,8.284e-05,2]
[422155834,1778631046000,-3045.41718995,7.884e-05,2]
[422155838,1778631047000,-3862.15262627,8.332e-05,2]
[422155839,1778631047000,-4221.92732972,8.749e-05,2]
[422155842,1778631047000,-446.04519823,9.554e-05,2]
[422155840,1778631047000,-3731.82544351,9.165e-05,2]
[422155843,1778631047000,-2070.29489257,9.582e-05,2]
[422155845,1778631047000,-6225.9970348,9.873e-05,2]
[422155844,1778631047000,-3028.34692286,9.582e-05,2]
[422155841,1778631047000,-1316.71061402,9.165e-05,2]
[422155846,1778631047000,-6131.87304032,9.873e-05,2]
[422155851,1778631197000,151.0,0.00014,30]
[422155852,1778631208000,152.0,0.00014,30]
[422155853,1778631225000,196.77,0.00012,120]
[422155857,1778631281000,152.0,0.00014,30]
[422155866,1778631735000,152.0,0.00014,30]
[422155865,1778631735000,152.0,0.00014,30]
[422155867,1778631736000,152.0,0.00014,30]
[422155868,1778631737000,152.0,0.00014,30]
[422155869,1778631738000,152.0,0.00014,30]
[422155870,1778631758000,152.0,0.00014,30]
[422155872,1778631759000,152.0,0.00014,30]
[422155871,1778631759000,152.0,0.00014,30]
[422155874,1778631810000,21000.0,0.00014,30]
[422155928,1778632232000,-173.0031,8.89e-05,2]
[422155926,1778632232000,-300.0,8.89e-05,2]
[422155930,1778632232000,-113.0845792,8.891e-05,2]
[422155924,1778632232000,-384.95334628,8.737e-05,2]
[422155922,1778632232000,-5000.0,8.456e-05,2]
[422155920,1778632232000,-670.95897452,8.371e-05,2]
[422156131,1778632241000,-300.0,9.068e-05,2]
[422156132,1778632241000,-300.0,9.068e-05,2]
[422156142,1778632241000,-621.29626249,9.725e-05,2]
[422156143,1778632241000,-720.0,9.975e-05,2]
[422156140,1778632241000,-500.0,9.725e-05,2]
[422156134,1778632241000,-300.0,9.068e-05,2]
[422156136,1778632241000,-300.0,9.068e-05,2]
[422156130,1778632241000,-300.0,9.068e-05,2]
[422156139,1778632241000,-326.7940112,9.599e-05,2]
[422156133,1778632241000,-300.0,9.068e-05,2]
[422156129,1778632241000,-300.0,9.068e-05,2]
[422156122,1778632241000,-200.508651,8.891e-05,2]
[422156123,1778632241000,-300.0,9.068e-05,2]
[422156126,1778632241000,-300.0,9.068e-05,2]
[422156127,1778632241000,-300.0,9.068e-05,2]
[422156128,1778632241000,-300.0,9.068e-05,2]
[422156141,1778632241000,-500.0,9.725e-05,2]
[422156121,1778632241000,-27682.81707172,8.891e-05,2]
[422156116,1778632241000,-34260.77567279,8.891e-05,2]
[422156115,1778632241000,-2431.18368293,8.802e-05,2]
[422156117,1778632241000,-643.78105749,8.891e-05,2]
[422156114,1778632241000,-583.08379763,8.802e-05,2]
[422156125,1778632241000,-300.0,9.068e-05,2]
[422156138,1778632241000,-600.0,9.068e-05,2]
[422156124,1778632241000,-300.0,9.068e-05,2]
[422156135,1778632241000,-300.0,9.068e-05,2]
[422156137,1778632241000,-300.0,9.068e-05,2]
[422156167,1778632241000,-2062.55134431,0.000104,2]
[422156162,1778632241000,-529.0,0.000103,2]
[422156164,1778632241000,-160.0,0.00010316,2]
[422156160,1778632241000,-2062.55134431,0.000103,2]
[422156163,1778632241000,-161.62975969,0.00010316,2]
[422156159,1778632241000,-500.0,0.00010273,2]
[422156166,1778632241000,-155.0,0.00010331,2]
[422156161,1778632241000,-4542.15238736,0.000103,2]
[422156158,1778632241000,-155.0,0.00010165,2]
[422156157,1778632241000,-300.89714103,0.0001,2]
[422156155,1778632241000,-151.0,0.0001,2]
[422156165,1778632241000,-160.0,0.00010316,2]
[422156153,1778632241000,-151.0,0.0001,2]
[422156152,1778632241000,-151.0,0.0001,2]
[422156145,1778632241000,-155.0,9.998e-05,2]
[422156150,1778632241000,-151.0,0.0001,2]
[422156144,1778632241000,-5875.14478534,9.998e-05,2]
[422156149,1778632241000,-151.0,0.0001,2]
[422156146,1778632241000,-500.0,9.999e-05,2]
[422156147,1778632241000,-180.0,0.0001,2]
[422156151,1778632241000,-151.0,0.0001,2]
[422156156,1778632241000,-151.0,0.0001,2]
[422156154,1778632241000,-151.0,0.0001,2]
[422156148,1778632241000,-151.0,0.0001,2]
[422156205,1778632242000,-4333.44321671,0.00010852,21]
[422156212,1778632242000,-1327.6159893,0.00010898,2]
[422156211,1778632242000,-1327.6159893,0.00010898,2]
[422156213,1778632242000,-1327.6159893,0.00010898,2]
[422156217,1778632242000,-1327.6159893,0.00010898,2]
[422156203,1778632242000,-152.0,0.00010842,2]
[422156201,1778632242000,-6701.56799516,0.00010831,2]
[422156198,1778632242000,-152.0,0.00010827,2]
[422156202,1778632242000,-155.0,0.00010831,2]
[422156200,1778632242000,-152.0,0.00010827,2]
[422156215,1778632242000,-1327.6159893,0.00010898,2]
[422156204,1778632242000,-309.447,0.00010848,2]
[422156209,1778632242000,-1327.6159893,0.00010898,2]
[422156225,1778632242000,-152.0,0.00010956,2]
[422156216,1778632242000,-1327.6159893,0.00010898,2]
[422156208,1778632242000,-1327.6159893,0.00010898,2]
[422156210,1778632242000,-1327.6159893,0.00010898,2]
[422156214,1778632242000,-1327.6159893,0.00010898,2]
[422156207,1778632242000,-1327.6159893,0.00010898,2]
[422156219,1778632242000,-1327.6159893,0.00010898,2]
[422156230,1778632242000,-500.0,0.00010958,2]
[422156229,1778632242000,-663.23,0.00010958,2]
[422156221,1778632242000,-1327.6159893,0.00010898,2]
[422156228,1778632242000,-500.0,0.00010958,2]
[422156199,1778632242000,-152.0,0.00010827,2]
[422156220,1778632242000,-1327.6159893,0.00010898,2]
[422156206,1778632242000,-385.97183437,0.00010898,2]
[422156193,1778632242000,-152.0,0.00010775,2]
[422156186,1778632242000,-1412.0,0.00010754,2]
[422156194,1778632242000,-4542.15238736,0.000108,2]
[422156169,1778632242000,-6366.14147977,0.00010415,2]
[422156168,1778632242000,-4542.15238736,0.000104,2]
[422156170,1778632242000,-325.8415176,0.00010415,2]
[422156172,1778632242000,-155.0,0.00010498,2]
[422156171,1778632242000,-325.5232444,0.00010442,2]
[422156173,1778632242000,-2062.55134431,0.000105,2]
[422156183,1778632242000,-152.0,0.00010743,2]
[422156182,1778632242000,-454.24494861,0.00010737,2]
[422156174,1778632242000,-4542.15238736,0.000105,2]
[422156180,1778632242000,-4542.15238736,0.000107,2]
[422156179,1778632242000,-2062.55134431,0.000107,2]
[422156175,1778632242000,-500.0,0.00010547,2]
[422156177,1778632242000,-4542.15238736,0.000106,2]
[422156176,1778632242000,-2062.55134431,0.000106,2]
[422156178,1778632242000,-155.0,0.00010665,2]
[422156181,1778632242000,-152.0,0.00010732,2]
[422156184,1778632242000,-4333.4432167,0.00010747,21]
[422156224,1778632242000,-2043.3,0.000109,2]
[422156187,1778632242000,-647.0,0.00010754,2]
[422156185,1778632242000,-2215.0,0.00010754,2]
[422156196,1778632242000,-152.0,0.00010816,2]
[422156188,1778632242000,-443.0,0.00010754,2]
[422156197,1778632242000,-152.0,0.00010827,2]